bitfinex/quotes_ETHUSD_20220310
["timestamp","ask_amount","ask_price","bid_price","bid_amount"]
[1646893336236,88.01615114,2588.9,2588.8,122.7647474]
[1646893336636,88.76960031,2588.9,2588.8,122.7647474]
[1646893336836,196.31374131,2588.9,2588.8,122.7647474]
[1646893337037,211.96192314,2588.9,2588.8,122.7647474]
[1646893337236,208.02442131,2588.9,2588.8,122.7647474]
[1646893337537,238.86137414,2588.9,2588.8,122.7647474]
[1646893337738,212.55048614,2588.9,2588.8,122.7647474]
[1646893337937,214.52732761,2588.9,2588.8,122.7647474]
[1646893338136,214.54618244,2588.9,2588.8,122.7647474]
[1646893338337,212.06742344,2588.9,2588.8,122.6630894]
[1646893338538,209.18016761,2588.9,2588.8,122.6630894]
[1646893338738,212.24441344,2588.9,2588.8,120.79314213]
[1646893338979,212.48147644,2588.9,2588.8,120.79314213]
[1646893339186,201.78040261,2588.9,2588.8,120.79314213]
[1646893339381,146.73385635,2588.9,2588.8,120.79314213]
[1646893339580,146.73385635,2588.9,2588.8,108.78887672]
[1646893339581,146.84602035,2588.9,2588.8,108.78887672]
[1646893339782,146.84602035,2588.9,2588.8,1.95936047]
[1646893339783,59.36861635,2588.9,2588.8,1.95936047]
[1646893340081,246.00806329,2588.9,2588.8,1.46936047]
[1646893340283,245.50806329,2588.9,2588.8,0.10715253]
[1646893340482,245.30628509,2588.9,2587.8,1.14036]
[1646893340682,12.925,2588.4,2588.3,0.00154945]
[1646893340883,28.80188875,2588.4,2588.3,0.00154945]
[1646893341087,208.70571487,2588.4,2588.3,0.00154945]
[1646893341283,190.17991487,2588.4,2588.3,0.00154945]
[1646893341485,188.82724543,2588.4,2588.1,0.00581092]
[1646893341688,12.925,2588.0,2587.8,1.1394]
[1646893341887,12.925,2588.0,2587.8,0.00743569]
[1646893341888,14.486763,2587.9,2587.8,0.00743569]
[1646893342089,87.25314977,2587.9,2587.8,0.00743569]
[1646893342289,80.69701877,2587.9,2587.8,0.00743569]
[1646893342487,93.51596733,2587.9,2587.8,0.00743569]
[1646893342728,92.77048333,2587.9,2587.8,0.00743569]
[1646893342932,1.155,2587.6,2587.4,0.06622777]
[1646893343134,1.82258287,2587.4,2587.3,0.00743712]
[1646893343335,9.85134587,2587.4,2587.3,0.00743712]
[1646893343535,53.21655887,2587.4,2587.3,0.00743712]
[1646893343734,56.51918287,2587.4,2587.3,0.00743712]
[1646893343935,56.51918287,2587.4,2586.9,0.06939446]
[1646893344138,56.51918287,2587.4,2586.9,0.06843446]
[1646893344336,1.155,2587.2,2586.9,0.06843446]
[1646893344537,1.155,2587.0,2586.9,0.06843446]
[1646893344738,8.683763,2587.0,2586.9,0.45423446]
[1646893344936,8.683763,2587.0,2586.9,3.45423446]
[1646893346584,8.983763,2587.0,2586.9,3.3858]
[1646893346786,9.983763,2587.0,2586.9,3.3858]
[1646893347386,10.57275775,2587.0,2586.9,3.3858]
[1646893347587,10.57275775,2587.0,2586.9,0.3858]
[1646893347787,10.57275775,2587.0,2586.7,0.3858]
[1646893347989,1.155,2586.8,2586.7,0.3858]
[1646893348191,1.619,2586.8,2586.7,0.3858]
[1646893348390,1.919,2586.8,2586.7,0.3858]
[1646893349588,5.539277,2586.8,2586.6,3.3858]
[1646893349791,2.919,2586.8,2586.6,3.3858]
[1646893349989,3.536,2586.7,2586.6,3.3858]
[1646893350230,2.919,2586.7,2586.6,3.3858]
[1646893350429,5.35,2586.7,2586.6,3.3858]
[1646893350628,4.6742,2586.7,2586.6,1.92349999]
[1646893350833,5.6742,2586.7,2586.4,0.42830141]
[1646893351032,9.93833685,2587.3,2586.4,161.5]
[1646893351033,1.97146705,2587.3,2586.4,161.5]
[1646893351230,1.97146705,2587.3,2587.0,0.01270103]
[1646893351430,1.3300608,2587.7,2587.0,0.01270103]
[1646893351635,6.48530306,2587.6,2587.0,0.01270103]
[1646893351833,0.5,2587.2,2586.5,0.00096]
[1646893352031,0.5,2587.2,2586.5,6.48530306]
[1646893352032,0.464,2587.1,2586.5,6.48530306]
[1646893352432,0.464,2587.1,2586.4,162.6331]
[1646893352832,0.764,2587.1,2586.4,162.6331]
[1646893353031,0.764,2587.1,2586.5,6.48530306]
[1646893354882,0.764,2587.1,2586.7,1.19205788]
[1646893355085,0.3,2587.1,2586.7,1.19205788]
[1646893355281,0.464,2587.5,2586.7,1.19205788]
[1646893355582,0.764,2587.5,2586.7,1.19205788]
[1646893355781,0.464,2587.5,2587.1,0.96645148]
[1646893355985,1.0686786,2587.7,2587.1,0.96645148]
[1646893356185,1.0686786,2587.7,2587.2,6.03516662]
[1646893356382,1.0686786,2587.7,2586.6,12.57756611]
[1646893356586,1.0686786,2587.7,2586.7,1.1446]
[1646893356786,1.0686786,2587.7,2586.8,0.07707231]
[1646893358237,1.0686786,2587.7,2586.9,0.96812]
[1646893358437,1.3686786,2587.7,2587.1,1.14322711]
[1646893358640,1.3686786,2587.7,2587.2,0.06869523]
[1646893358641,1.0686786,2587.7,2587.2,0.06869523]
[1646893359340,0.5686786,2587.7,2587.2,0.06869523]
[1646893359543,0.5686786,2587.7,2587.5,0.89355771]
[1646893359740,0.5686786,2587.7,2587.6,0.07112857]
[1646893359940,0.5686786,2587.7,2587.0,6.10122712]
[1646893360143,0.5686786,2587.7,2586.9,0.00743827]
[1646893360841,0.5686786,2587.7,2587.2,0.3858]
[1646893361043,0.5686786,2587.7,2587.2,0.45608783]
[1646893361246,0.8686786,2587.7,2587.2,0.45608783]
[1646893361916,0.8686786,2587.7,2587.2,0.07028783]
[1646893362116,0.8686786,2587.7,2586.9,0.07007816]
[1646893362317,0.8686786,2587.7,2586.9,0.07188798]
[1646893363317,0.8686786,2587.7,2586.9,0.07007816]
[1646893363523,0.464,2587.6,2586.9,0.07007816]
[1646893366741,6.5465777,2587.6,2586.9,0.07007816]
[1646893367140,1.464,2587.6,2586.9,0.07007816]
[1646893367339,6.5465777,2587.6,2586.9,0.07007816]
[1646893367743,7.5465777,2587.6,2586.9,0.07007816]
[1646893368040,1.464,2587.6,2586.9,0.07007816]
[1646893368241,0.464,2587.6,2586.9,0.07007816]
[1646893369293,6.5465777,2587.6,2586.9,0.07007816]
[1646893369689,1.464,2587.6,2586.9,0.07007816]
[1646893369890,17.056372,2587.5,2586.9,0.07007816]
[1646893370090,0.464,2587.4,2586.9,0.07007816]
[1646893370291,16.239133,2587.4,2586.9,0.07007816]
[1646893370488,17.310133,2587.4,2586.9,0.07007816]
[1646893370691,15.703133,2587.3,2586.9,0.07007816]
[1646893370889,0.464,2587.2,2586.9,0.07007816]
[1646893371089,16.110137,2587.2,2586.9,0.07007816]
[1646893371293,17.327137,2587.2,2586.9,0.07007816]
[1646893371595,13.255101,2587.1,2586.9,0.07007816]
[1646893371794,0.464,2587.0,2586.9,0.07007816]
[1646893371997,0.5,2586.9,2586.7,1.1446]
[1646893372193,0.5,2586.9,2586.6,0.06521741]
[1646893372194,0.464,2586.8,2586.6,0.06521741]
[1646893372394,0.764,2586.8,2586.6,0.06521741]
[1646893373538,0.764,2586.8,2586.4,161.5]
[1646893373838,0.764,2586.8,2586.4,161.55323999]
[1646893374640,1.35649593,2586.8,2586.4,161.55323999]
[1646893375241,0.20095215,2586.7,2586.4,161.55323999]
[1646893375441,0.464,2586.6,2586.4,161.55323999]
[1646893375743,0.764,2586.6,2586.4,161.55323999]
[1646893377091,0.764,2586.6,2586.2,4.1955803]
[1646893377290,0.764,2586.6,2586.3,0.0519395]
[1646893377291,0.07310166,2586.5,2586.3,0.0519395]
[1646893377492,0.464,2586.4,2586.3,0.0519395]
[1646893377990,0.764,2586.4,2586.3,0.0519395]
[1646893381436,0.764,2586.4,2586.2,0.0461803]
[1646893381437,0.07699952,2586.3,2586.2,0.0461803]
[1646893381641,6.62357722,2586.3,2586.0,0.03196784]
[1646893381842,0.06283647,2586.2,2586.0,0.07262336]
[1646893382039,0.464,2586.1,2586.0,0.07262336]
[1646893382640,0.764,2586.1,2586.0,0.07262336]
[1646893384688,1.35801402,2586.1,2586.0,0.07262336]
[1646893384887,1.05801402,2586.1,2586.0,0.07262336]
[1646893386291,1.35801402,2586.1,2586.0,0.07262336]
[1646893387099,1.35801402,2586.1,2586.0,0.08147264]
[1646893387296,0.89401402,2586.1,2586.0,0.08147264]
[1646893388948,0.59401402,2586.1,2586.0,0.08147264]
[1646893389148,0.59401402,2586.1,2586.0,6.22479629]
[1646893389347,0.59401402,2586.1,2586.0,0.14221859]
[1646893391597,0.89401402,2586.1,2586.0,0.14221859]
[1646893392399,0.89401402,2586.1,2586.0,0.08147264]
[1646893392595,0.89080502,2586.1,2586.0,0.08147264]
[1646893396242,0.89080502,2586.1,2586.0,3.08147264]
[1646893396441,0.89080502,2586.1,2586.0,0.08147264]
[1646893400300,0.95916648,2586.1,2586.0,0.08147264]
[1646893401296,0.89080502,2586.1,2586.0,0.08147264]
[1646893402299,0.89080502,2586.1,2586.0,0.08059422]
[1646893402498,0.95881979,2586.1,2586.0,0.08059422]
[1646893404344,0.89080502,2586.1,2586.0,0.08059422]
[1646893406891,0.59401402,2586.1,2586.0,3.08059422]
[1646893408292,0.59401402,2586.1,2586.0,3.08235106]
[1646893408692,0.59401402,2586.1,2585.8,0.0195279]
[1646893412345,0.89401402,2586.1,2585.7,1.35200124]
[1646893412544,0.89401402,2586.1,2585.8,0.0390558]
[1646893412945,0.89401402,2586.1,2585.4,0.00700018]
[1646893413747,0.89401402,2586.1,2585.3,4.8693015]
[1646893414005,0.89401402,2586.1,2585.3,4.8183415]
[1646893414593,0.89401402,2586.1,2585.3,0.02656592]
[1646893414992,0.89401402,2586.1,2585.2,1.30753274]
[1646893414993,0.01763141,2586.0,2585.2,1.30753274]
[1646893415194,0.01763141,2586.0,2585.2,1.30900671]
[1646893415793,0.9687,2585.8,2585.2,1.30900671]
[1646893416194,0.9687,2585.8,2585.2,1.30200586]
[1646893416398,0.9687,2585.8,2585.1,5.25581383]
[1646893419040,0.9687,2585.8,2585.1,11.27375921]
[1646893419442,0.01753915,2585.7,2585.1,11.27375921]
[1646893419643,1.93741,2585.6,2585.1,11.27375921]
[1646893421045,1.93741,2585.6,2585.1,5.25581383]
[1646893422494,0.07615794,2585.5,2585.1,5.25581383]
[1646893423496,0.07615794,2585.5,2585.1,3.70555898]
[1646893424297,0.96865,2585.4,2585.1,3.4796863]
[1646893424498,0.08248492,2585.3,2585.1,3.4796863]
[1646893424697,1.93776,2585.2,2585.1,3.4796863]
[1646893424897,1.93776,2585.2,2584.8,0.03551694]
[1646893425098,0.080031,2585.1,2584.8,0.03551694]
[1646893425941,0.96887,2585.0,2584.8,0.03551694]
[1646893426746,0.0720484,2584.9,2584.8,0.03551694]
[1646893430430,0.0720484,2584.9,2584.7,0.0645249]
[1646893430629,1.93767,2584.8,2584.7,0.0645249]
[1646893434147,1.95486835,2584.8,2584.7,0.0645249]
[1646893434549,1.95486835,2584.8,2584.5,0.0352044]
[1646893434746,0.08037989,2584.7,2584.5,0.0352044]
[1646893435146,0.08037989,2584.7,2584.6,0.09236449]
[1646893436995,1.93804,2584.6,2584.5,0.0352044]
[1646893437594,1.93804,2584.6,2584.2,0.0294316]
[1646893437796,5.99011556,2584.5,2584.2,0.0294316]
[1646893437995,0.07345864,2584.4,2584.2,0.0294316]
[1646893438197,0.07345864,2584.4,2583.6,0.00096]
[1646893438198,2.01208864,2584.4,2584.0,0.00604653]
[1646893438397,0.09022614,2584.3,2583.5,1.24829427]
[1646893439304,0.96928,2584.1,2583.5,1.24829427]
[1646893440342,0.96928,2584.1,2583.5,2.21739427]
[1646893440842,0.96928,2584.1,2583.7,0.04964245]
[1646893442750,0.09022614,2584.3,2583.8,0.464]
[1646893442751,0.96878,2584.3,2583.8,0.464]
[1646893442951,0.07236856,2585.3,2584.0,0.04547335]
[1646893443252,0.07236856,2585.3,2584.1,0.464]
[1646893443450,0.07236856,2585.3,2584.1,1.6924]
[1646893443650,0.07236856,2585.3,2584.2,5.99011556]
[1646893444093,0.01089802,2584.7,2584.2,5.99011556]
[1646893444292,0.07236856,2585.3,2584.2,5.99011556]
[1646893444497,4.74739898,2585.4,2584.2,5.99011556]
[1646893444498,0.96871,2584.6,2584.3,1.93739]
[1646893444693,0.96552,2584.6,2584.3,1.93835]
[1646893444893,0.96552,2584.6,2584.3,1.75877779]
[1646893445194,0.96552,2584.6,2584.4,0.9687]
[1646893447200,0.96552,2584.6,2584.4,6.80881556]
[1646893447400,0.96552,2584.6,2584.4,0.8187]
[1646893447606,0.96552,2584.6,2584.5,1.13573568]
[1646893447843,0.96552,2584.6,2584.5,5.99011556]
[1646893448644,0.96552,2584.6,2584.4,0.86716403]
[1646893448843,0.96552,2584.6,2584.4,0.8187]
[1646893449044,0.02280802,2584.5,2584.4,0.8187]
[1646893449244,0.02280802,2584.5,2584.3,1.75877779]
[1646893449646,0.02280802,2584.5,2584.4,5.99011556]
[1646893449844,0.02280802,2584.5,2584.4,7.0846087]
[1646893450244,0.02280802,2584.5,2584.3,1.75877779]
[1646893450445,0.02280802,2584.5,2584.3,2.22277779]
[1646893450647,0.01961602,2584.5,2584.3,2.22277779]
[1646893450845,0.01961602,2584.5,2584.4,5.99011556]
[1646893451046,0.01961602,2584.5,2584.3,2.22277779]
[1646893452497,0.01961602,2584.5,2584.4,5.99011556]
[1646893452699,1.93713,2585.3,2584.5,51.0]
[1646893452898,1.93713,2585.3,2584.8,0.9685]
[1646893453097,1.93713,2585.3,2584.9,0.464]
[1646893453499,0.08839831,2585.2,2584.9,0.464]
[1646893453697,1.93713,2585.3,2584.9,0.464]
[1646893454498,0.96855,2585.1,2584.9,0.464]
[1646893455841,0.96855,2585.1,2584.8,0.9685]
[1646893456242,0.08549378,2585.0,2584.8,0.9685]
[1646893456443,0.08549378,2585.0,2584.6,1.93699]
[1646893456444,2.02282378,2585.0,2584.6,1.93699]
[1646893456646,0.08764808,2584.9,2584.6,1.93699]
[1646893457046,0.96866,2584.8,2584.6,1.93699]
[1646893457552,1.93759,2584.6,2584.4,3.18549]
[1646893457749,0.07669052,2584.5,2584.2,1.94411662]
[1646893457947,0.07669052,2584.5,2584.2,1.94315662]
[1646893458346,0.07669052,2584.5,2584.2,1.93756]
[1646893460395,0.07349852,2584.5,2584.2,1.93756]
[1646893460597,0.07349852,2584.5,2584.1,5.99011556]
[1646893460796,0.07349852,2584.5,2584.0,3.09265122]
[1646893461097,0.07349852,2584.5,2584.0,1.93772]
[1646893461297,0.07349852,2584.5,2584.0,0.38698445]
[1646893463850,0.07349852,2584.5,2583.9,5.99011556]
[1646893463851,0.96885,2584.4,2583.9,5.99011556]
[1646893464050,0.07339462,2584.3,2583.9,6.45411556]
[1646893465052,0.07339462,2584.3,2584.0,0.96885]
[1646893470749,0.07339462,2584.3,2584.0,1.43285]
[1646893472549,0.07339462,2584.3,2584.1,1.18314926]
[1646893472750,0.07339462,2584.3,2584.0,0.96885]
[1646893474996,0.07339462,2584.3,2583.8,3.11793]
[1646893474997,2.01117462,2584.3,2583.8,3.11793]
[1646893475197,2.01117462,2584.3,2583.8,1.1802]
[1646893475198,0.07533695,2584.2,2583.8,1.1802]
[1646893475597,0.07533695,2584.2,2583.7,7.32]
[1646893475796,0.07533695,2584.2,2583.6,0.0070907]
[1646893476397,0.07533695,2584.2,2583.5,0.01709427]
[1646893476603,1.9382,2584.1,2583.5,0.01709427]
[1646893476801,0.07468736,2584.0,2583.4,0.02881092]
[1646893477002,0.96942,2583.9,2583.4,0.02881092]
[1646893477201,0.08601008,2583.8,2583.4,0.02881092]
[1646893477402,0.08601008,2583.8,2583.3,0.02298708]
[1646893477403,0.5,2583.7,2583.3,0.02298708]
[1646893477603,0.07925462,2583.6,2583.3,0.02298708]
[1646893477845,0.07925462,2583.6,2582.8,0.0302792]
[1646893477846,0.5,2583.5,2582.8,0.0302792]
[1646893478048,0.96959,2583.4,2583.1,0.00709207]
[1646893478246,0.07017054,2583.3,2582.8,0.0293192]
[1646893478846,1.93897,2583.2,2582.8,0.0293192]
[1646893479044,0.08392694,2583.1,2582.6,0.01956252]
[1646893479446,0.47602734,2583.4,2582.6,0.01956252]
[1646893479644,0.07294615,2583.3,2582.6,0.01956252]
[1646893480446,1.93911,2583.0,2582.6,0.01956252]
[1646893480645,0.07259981,2582.9,2582.6,0.01956252]
[1646893480846,0.96955,2582.8,2582.6,0.01956252]
[1646893481044,0.08878575,2582.7,2582.6,0.01956252]
[1646893485002,0.08878575,2582.7,2582.6,0.01979416]
[1646893488456,2.99794575,2582.7,2582.6,0.03958832]
[1646893504897,2.99794575,2582.7,2582.5,0.00020384]
[1646893505199,0.07279288,2582.6,2582.5,0.00020384]
[1646893510248,0.07279288,2582.6,2582.5,0.4850272]
[1646893510652,0.96955,2582.8,2582.6,75.5]
[1646893510954,1.93872,2583.0,2582.7,0.464]
[1646893511798,0.07160199,2582.9,2582.7,0.464]
[1646893512099,1.93872,2583.0,2582.7,0.464]
[1646893514102,1.93872,2583.0,2582.7,1.43329]
[1646893514502,0.03258431,2583.7,2582.8,192.5]
[1646893514704,3.87697,2584.5,2583.1,51.0]
[1646893514705,2.2934,2584.0,2583.1,51.0]
[1646893514902,0.06435954,2584.4,2583.2,0.464]
[1646893515104,0.00276042,2583.5,2583.3,0.464]
[1646893515551,0.00276042,2583.5,2583.3,1.43305]
[1646893515949,1.98886973,2584.1,2583.4,57.5]
[1646893516152,1.98886973,2584.1,2583.5,0.54279048]
[1646893516153,1.93798,2584.1,2583.5,0.54279048]
[1646893516655,0.96891,2584.0,2583.5,0.54279048]
[1646893517854,0.96891,2584.0,2583.5,1.51171048]
[1646893518054,0.96891,2584.0,2583.5,0.54279048]
[1646893518458,0.96891,2584.0,2583.6,0.06484734]
[1646893518654,0.96891,2584.0,2583.7,0.464]
[1646893518655,0.00265758,2583.9,2583.7,0.464]
[1646893519493,0.96891,2584.0,2583.7,0.464]
[1646893519895,0.00276096,2583.9,2583.7,0.464]
[1646893520704,0.96891,2584.0,2583.7,0.464]
[1646893521099,0.00276096,2583.9,2583.7,0.464]
[1646893521901,0.96891,2584.0,2583.7,0.464]
[1646893522302,0.00276096,2583.9,2583.7,0.464]
[1646893523146,0.96891,2584.0,2583.7,0.464]
[1646893523347,0.00276096,2583.9,2583.7,0.464]
[1646893524350,0.87167096,2584.0,2583.8,84.5]
[1646893524547,0.00276096,2583.9,2583.8,84.964]
[1646893525552,0.82167096,2584.0,2583.8,84.964]
[1646893526998,0.82432647,2584.0,2583.8,84.964]
[1646893527998,0.82167096,2584.0,2583.8,84.964]
[1646893528301,0.82409373,2584.0,2583.8,84.964]
[1646893529100,0.82167096,2584.0,2583.8,84.964]
[1646893529401,0.82409373,2584.0,2583.8,84.964]
[1646893530449,0.82167096,2584.0,2583.8,84.964]
[1646893530749,0.82409373,2584.0,2583.8,84.964]
[1646893531552,0.82167096,2584.0,2583.8,84.964]
[1646893531753,0.82409373,2584.0,2583.8,84.964]
[1646893531953,0.82409373,2584.0,2583.3,0.00096]
[1646893531954,0.96907,2583.8,2583.3,0.00096]
[1646893532153,0.06020885,2583.7,2583.1,2.8235]
[1646893532354,0.06020885,2583.7,2583.0,0.96917]
[1646893532555,0.00242277,2584.0,2583.0,2.18277]
[1646893532556,0.06053329,2584.0,2583.0,2.18277]
[1646893532753,7.42532394,2584.3,2583.0,2.18277]
[1646893532754,0.0655931,2584.2,2583.0,2.18277]
[1646893532953,0.0655931,2584.2,2583.1,0.00096]
[1646893533154,3.0,2583.9,2583.1,0.00096]
[1646893533354,0.96923,2583.6,2583.0,1.2136]
[1646893533557,0.05474127,2583.5,2582.8,4.42589009]
[1646893533993,0.05474127,2583.5,2582.8,2.8736443]
[1646893534393,0.05474127,2583.5,2582.8,3.3376443]
[1646893534595,0.05474127,2583.5,2582.8,4.3068943]
[1646893535395,0.96919,2583.3,2582.8,4.3068943]
[1646893535598,0.96919,2583.3,2582.8,1.43325]
[1646893536199,0.07736413,2583.2,2582.8,1.43325]
[1646893537000,0.07736413,2583.2,2582.8,0.464]
[1646893537200,0.07736413,2583.2,2582.6,8.5336]
[1646893537401,0.96936,2583.1,2582.6,8.5336]
[1646893537601,0.07315107,2583.0,2582.6,7.32]
[1646893538655,0.96936,2583.1,2582.7,0.96924]
[1646893538858,0.06877214,2583.3,2582.7,1.43324]
[1646893540056,1.1958,2583.9,2582.7,1.43324]
[1646893540057,0.0751688,2583.6,2582.7,1.43324]
[1646893540256,0.07713341,2583.8,2582.7,6.83782493]
[1646893540456,0.07713341,2583.8,2582.7,6.83878493]
[1646893540657,0.07713341,2583.8,2582.7,1.4342]
[1646893540856,1.04617341,2583.8,2582.7,1.4342]
[1646893541059,0.06343021,2583.7,2582.7,1.4342]
[1646893541502,0.06343021,2583.7,2582.7,1.44101283]
[1646893542504,0.06966147,2583.5,2582.7,1.4342]
[1646893542702,0.06966147,2583.5,2582.7,1.44005289]
[1646893543809,0.06966147,2583.5,2582.7,1.43324]
[1646893544110,0.96918,2583.4,2582.7,1.43324]
[1646893544307,0.07167501,2583.3,2582.7,1.43324]
[1646893544714,0.06488788,2583.6,2582.7,1.43324]
[1646893544909,0.07405293,2583.5,2582.6,7.32096]
[1646893545258,0.07405293,2583.5,2582.6,0.00096]
[1646893545448,0.07405293,2583.5,2582.5,10.35884061]
[1646893545647,3.0,2583.4,2582.5,10.35884061]
[1646893546048,0.07732655,2583.3,2582.5,10.3520272]
[1646893546449,0.96925,2583.2,2582.5,10.3520272]
[1646893546655,0.07552279,2583.1,2582.5,10.3520272]
[1646893547052,0.07552279,2583.1,2582.5,1.2497272]
[1646893548453,1.93855,2583.3,2582.5,1.2497272]
[1646893548454,0.06494113,2582.9,2582.5,1.2497272]
[1646893548654,0.06494113,2582.9,2582.5,0.0210272]
[1646893550097,0.96932,2583.0,2582.5,0.0210272]
[1646893550098,0.96932,2583.0,2582.9,1.87354887]
[1646893550898,0.96932,2583.0,2582.9,1.82354887]
[1646893552302,0.96932,2583.0,2582.7,0.96942]
[1646893552601,3.96932,2583.0,2582.5,0.0210272]
[1646893556905,3.96932,2583.0,2582.5,1.9598172]
[1646893559206,0.96932,2583.0,2582.5,1.9598172]
[1646893560261,0.05798442,2582.9,2582.5,1.9598172]
[1646893560451,0.96932,2583.0,2582.5,1.9598172]
[1646893560650,1.02865707,2583.0,2582.5,1.9598172]
[1646893562757,0.05324674,2582.9,2582.5,1.9598172]
[1646893563157,1.99213674,2582.9,2582.5,1.9598172]
[1646893563456,0.05976352,2582.8,2582.5,1.9598172]
[1646893564502,0.96944,2582.7,2582.5,1.9598172]
[1646893566509,0.96944,2582.7,2582.5,1.9098172]
[1646893567212,0.05976352,2582.8,2582.5,1.9098172]
[1646893571602,0.05938371,2583.2,2582.5,1.9098172]
[1646893572803,3.0,2582.9,2582.5,1.9098172]
[1646893573004,0.05938371,2583.2,2582.5,1.9098172]
[1646893573203,3.05938371,2583.2,2582.5,1.9098172]
[1646893573405,0.06417741,2583.0,2582.5,1.9098172]
[1646893573605,1.93887,2582.9,2582.5,1.9098172]
[1646893573805,0.06362196,2582.8,2582.5,1.9098172]
[1646893574505,0.9694,2582.7,2582.5,1.9098172]
[1646893582753,0.05113544,2582.7,2582.5,1.9098172]
[1646893583653,0.5796484,2582.8,2582.5,1.9098172]
[1646893583654,0.05558585,2582.9,2582.5,1.9098172]
[1646893585359,0.05558585,2582.9,2582.7,1.07400292]
[1646893585556,3.56217483,2583.6,2582.5,1.9098172]
[1646893585557,0.05954859,2583.2,2582.9,51.96906]
[1646893585757,5.53210944,2583.7,2582.9,0.96906]
[1646893585758,0.06003566,2583.6,2582.9,0.96906]
[1646893585957,0.06003566,2583.6,2583.0,0.464]
[1646893586157,0.06003566,2583.6,2583.0,8.2062]
[1646893586610,0.06003566,2583.6,2583.1,0.3858]
[1646893586809,0.96902,2583.8,2583.3,0.96893]
[1646893587008,0.05545902,2584.0,2583.4,0.464]
[1646893587208,0.05303356,2584.0,2583.4,0.464]
[1646893587610,0.05546009,2584.0,2583.4,0.464]
[1646893588409,1.02196356,2584.0,2583.4,0.464]
[1646893588610,1.02439022,2584.0,2583.4,0.464]
[1646893588811,1.02439022,2584.0,2583.4,0.46306066]
[1646893589410,4.02439022,2584.0,2583.4,0.46306066]
[1646893589612,0.05704608,2583.9,2583.4,0.46306066]
[1646893589814,4.93827,2583.8,2583.4,0.46306066]
[1646893590657,1.93827,2583.8,2583.4,0.46306066]
[1646893591054,3.0,2583.7,2583.4,0.46306066]
[1646893591256,0.96911,2583.6,2583.4,0.46306066]
[1646893592557,3.96911,2583.6,2583.4,0.46306066]
[1646893592757,3.96911,2583.6,2583.3,0.96893]
[1646893593559,0.96911,2583.6,2583.3,0.96893]
[1646893594713,0.05490248,2583.5,2583.3,0.96893]
[1646893596313,3.0,2583.4,2583.2,1.93785]
[1646893596515,3.05031051,2583.3,2583.2,1.93785]
[1646893596714,0.05523311,2583.2,2583.0,7.7422]
[1646893596914,3.96938,2583.1,2583.0,7.7422]
[1646893599754,4.54695302,2583.1,2583.0,7.7422]
[1646893601608,4.54695302,2583.1,2583.0,6.19082031]
[1646893604511,0.96938,2583.1,2583.0,6.19082031]
[1646893604709,0.05523311,2583.2,2583.0,6.19082031]
[1646893604910,0.05523311,2583.2,2583.0,8.12921031]
[1646893608863,3.0,2583.1,2583.0,6.19082031]
[1646893615161,3.0,2583.1,2583.0,4.63917335]
[1646893621258,0.5,2583.0,2582.5,0.02757196]
[1646893621459,0.5,2583.0,2582.5,0.02661196]
[1646893621460,0.06410581,2582.9,2582.5,0.02661196]
[1646893621668,0.5,2582.6,2582.5,0.0420544]
[1646893621861,0.06356702,2582.5,2582.1,6.00602135]
[1646893622062,0.06356702,2582.5,2582.0,1.20093248]
[1646893622662,3.96972,2582.1,2582.0,1.20093248]
[1646893623161,3.96972,2582.1,2582.0,0.01663248]
[1646893623361,0.96972,2582.1,2582.0,0.01663248]
[1646893626608,0.97092,2582.1,2582.0,0.01663248]
[1646893630360,1.0350971,2582.1,2582.0,0.01663248]
[1646893631609,0.97092,2582.1,2582.0,0.01663248]
[1646893631810,0.0012,2582.1,2582.0,5.84549564]
[1646893632015,0.0012,2582.1,2582.0,0.01663248]
[1646893633009,0.0012,2582.1,2582.0,5.82886316]
[1646893633210,0.0012,2582.1,2581.9,0.50545744]
[1646893634910,3.9695,2582.4,2582.1,50.9988]
[1646893635111,3.9695,2582.4,2582.2,5.8046132]
[1646893635356,3.9695,2582.4,2582.2,0.96945]
[1646893635558,3.9695,2582.4,2582.0,0.01926496]
[1646893635858,3.93570879,2582.4,2582.0,0.01926496]
[1646893636664,3.0,2582.1,2582.0,0.01926496]
[1646893636865,3.96974,2582.1,2582.0,0.01926496]
[1646893638667,3.96974,2582.1,2581.7,7.399508]
[1646893638668,0.5,2582.0,2581.7,0.079508]
[1646893638865,0.5,2582.0,2581.1,10.1151826]
[1646893638866,4.02580356,2581.8,2581.1,4.57166737]
[1646893639116,3.0,2581.2,2581.0,1.3139478]
[1646893639316,3.0,2581.2,2581.0,0.0720478]
[1646893640520,0.97006,2581.1,2581.0,0.0720478]
[1646893643461,3.0,2581.2,2581.0,0.0720478]
[1646893643662,3.0,2581.2,2581.0,1.0419378]
[1646893643865,3.96989,2581.3,2581.0,1.0419378]
[1646893644869,3.96989,2581.3,2581.0,0.0720478]
[1646893644870,3.0,2581.1,2581.0,0.0720478]
[1646893645066,4.94038,2581.1,2581.0,0.0720478]
[1646893645264,4.94038,2581.1,2580.9,0.04081068]
[1646893645265,0.5,2581.0,2580.9,0.04081068]
[1646893645663,4.04162205,2581.0,2580.9,0.04081068]
[1646893645865,0.05918738,2580.9,2580.7,0.03795504]
[1646893646064,3.0,2580.8,2580.7,0.03795504]
[1646893646267,3.97042,2580.8,2580.5,10.04336164]
[1646893646512,3.05736338,2580.6,2580.5,8.58596066]
[1646893646715,3.05736338,2580.6,2580.5,2.62988721]
[1646893646916,6.59898543,2580.6,2580.5,2.62988721]
[1646893647418,0.5,2580.5,2580.4,0.05920078]
[1646893647615,0.5,2580.5,2580.4,0.12399664]
[1646893647616,7.272465,2580.5,2580.4,0.12399664]
[1646893647814,10.81408705,2580.5,2578.6,4.42730451]
[1646893648017,10.81408705,2580.5,2579.2,0.0361644]
[1646893648215,0.05038764,2580.4,2579.2,0.0361644]
[1646893648418,3.0,2579.6,2579.2,0.0361644]
[1646893648618,3.0,2579.6,2579.2,0.0352044]
[1646893649417,3.97066,2579.6,2579.2,0.0352044]
[1646893650476,9.7216917,2579.6,2579.2,0.0352044]
[1646893650676,9.7216917,2579.6,2579.5,0.00761868]
[1646893650875,9.7216917,2579.6,2579.2,0.0352044]
[1646893650876,0.0076,2579.5,2579.2,0.0352044]
[1646893651076,2.91322,2579.4,2579.3,0.01523736]
[1646893651275,0.97101,2579.2,2579.0,0.00133283]
[1646893651476,3.0,2579.1,2579.0,0.03180755]